bitfinex/quotes_ETHUSD_20220311
["timestamp","ask_amount","ask_price","bid_price","bid_amount"]
[1647009997054,1.90944,2618.2,2617.8,1.04863648]
[1647009997551,0.95469,2618.3,2617.8,1.04863648]
[1647009997552,0.00602417,2618.0,2617.8,1.34863648]
[1647009997752,0.00602417,2618.0,2617.8,4.11694488]
[1647009997951,0.00602417,2618.0,2617.8,0.8592384]
[1647009998152,0.00602417,2618.0,2617.0,5.25568]
[1647009998153,0.00602417,2618.0,2617.0,2.3917]
[1647009998355,3.017312,2618.5,2617.4,0.95482]
[1647009998356,0.95489,2617.9,2617.4,0.95482]
[1647009998585,0.05639164,2617.7,2617.4,0.95482]
[1647009998890,0.00151614,2618.3,2617.5,5.40364893]
[1647009999092,0.00151614,2618.3,2617.7,11.64]
[1647009999289,0.00151614,2618.3,2617.9,11.64]
[1647009999486,0.00151614,2618.3,2618.0,0.461]
[1647009999687,0.00151614,2618.3,2618.1,11.71573155]
[1647009999896,0.00151614,2618.3,2618.2,14.09363237]
[1647010000097,0.00151614,2618.3,2618.2,14.39363237]
[1647010000294,0.00151614,2618.3,2618.2,16.39363237]
[1647010000295,1.614e-05,2618.3,2618.2,16.39363237]
[1647010000695,0.00564314,2618.5,2618.3,7.0]
[1647010000895,0.00564314,2618.5,2618.4,15.601]
[1647010001293,0.05086779,2619.5,2618.4,16.79493037]
[1647010001500,0.3824,2619.7,2618.9,11.64]
[1647010001696,0.3824,2619.7,2618.8,1.90798]
[1647010001697,0.95404,2620.2,2619.0,15.601]
[1647010001895,0.95404,2620.2,2619.2,1.90798]
[1647010001896,0.05601799,2620.0,2619.2,1.90798]
[1647010002095,0.05601799,2620.0,2619.3,0.461]
[1647010002339,0.05601799,2620.0,2619.5,0.82622066]
[1647010002537,0.05601799,2620.0,2619.5,1.78023066]
[1647010002735,0.05601799,2620.0,2619.5,2.08023066]
[1647010003035,2.3621984,2620.2,2619.5,1.25401]
[1647010003234,0.06100546,2620.0,2619.7,0.8586195]
[1647010003435,0.06100546,2620.0,2619.7,1.1586195]
[1647010003635,0.06100546,2620.0,2619.7,0.3]
[1647010003837,0.06100546,2620.0,2619.3,0.3]
[1647010004041,0.06100546,2620.0,2618.8,0.03017369]
[1647010004240,0.06100546,2620.0,2618.4,2.0]
[1647010004241,1.5716016,2619.9,2618.4,0.461]
[1647010004435,0.06209086,2619.4,2618.1,1.90859]
[1647010004638,0.06209086,2619.4,2618.3,0.9543]
[1647010005039,0.63686158,2619.2,2618.5,0.82120555]
[1647010005241,0.04859102,2619.1,2618.5,0.82120555]
[1647010005441,0.00162864,2619.8,2618.5,0.82120555]
[1647010005740,0.06315213,2619.8,2618.6,1.717771]
[1647010005984,0.95437,2619.3,2618.6,1.717771]
[1647010006185,0.00429508,2619.0,2618.6,1.717771]
[1647010006588,0.00429508,2619.0,2618.9,1.11902053]
[1647010006782,0.00429508,2619.0,2618.9,1.41902053]
[1647010006983,0.05552949,2619.2,2618.9,1.41902053]
[1647010007383,0.05552949,2619.2,2618.6,1.717771]
[1647010007787,0.05552949,2619.2,2618.6,2.017771]
[1647010008386,0.05552949,2619.2,2618.7,0.91573805]
[1647010008586,0.00429503,2619.0,2618.7,0.91573805]
[1647010008787,0.00429503,2619.0,2618.7,1.21573805]
[1647010009192,0.05552949,2619.2,2618.7,1.21573805]
[1647010009589,0.00400349,2619.0,2618.7,1.21573805]
[1647010009836,0.95842349,2619.0,2618.7,1.21573805]
[1647010010037,0.00400349,2619.0,2618.7,1.97924425]
[1647010010237,0.00400349,2619.0,2618.8,0.461]
[1647010010441,0.05135963,2620.0,2618.8,0.461]
[1647010010640,0.05135963,2620.0,2619.0,1.5266016]
[1647010010842,0.9541,2619.7,2619.0,1.5266016]
[1647010011038,0.9541,2619.7,2619.0,1.8266016]
[1647010011039,0.01549623,2619.4,2619.0,1.8266016]
[1647010011241,0.01549623,2619.4,2619.3,1.43193174]
[1647010011745,0.04997539,2619.9,2619.3,1.89293174]
[1647010011938,0.00133676,2619.5,2619.3,1.89293174]
[1647010012342,0.00133676,2619.5,2619.3,13.53293174]
[1647010012743,0.00133676,2619.5,2619.3,14.53293174]
[1647010012940,0.04997539,2619.9,2619.8,0.91456296]
[1647010013142,0.04997539,2619.9,2619.4,1.90779]
[1647010013143,0.00155577,2619.5,2619.4,1.90779]
[1647010013988,0.04882344,2620.3,2619.4,1.90779]
[1647010014186,0.04882344,2620.3,2619.9,1.12492814]
[1647010014390,0.04882344,2620.3,2619.6,0.7631464]
[1647010014391,0.06166084,2620.0,2619.6,0.7631464]
[1647010014591,0.95401,2619.9,2619.6,0.7631464]
[1647010015397,0.05583988,2619.7,2619.3,1.5262433]
[1647010015596,0.05583988,2619.7,2619.1,1.5266864]
[1647010015794,0.05583988,2619.7,2619.2,3.5]
[1647010015795,1.67628323,2619.5,2619.2,3.5]
[1647010015994,1.67628323,2619.5,2619.1,13.1666864]
[1647010016198,0.00155598,2619.9,2619.3,12.64]
[1647010016395,0.00155598,2619.9,2619.4,12.101]
[1647010016595,0.00155598,2619.9,2619.4,12.8640976]
[1647010016794,0.00155598,2619.9,2619.4,1.2240976]
[1647010016999,1.01340584,2620.0,2619.4,0.7630976]
[1647010017000,0.96496182,2620.0,2619.4,0.7630976]
[1647010017232,0.00651325,2619.8,2619.4,0.7630976]
[1647010017832,0.96496182,2620.0,2619.4,0.7630976]
[1647010018032,0.05738428,2619.9,2619.4,0.7630976]
[1647010018839,1.0,2619.6,2619.3,1.5261952]
[1647010019037,0.05787573,2619.5,2618.7,1.90838]
[1647010019236,0.05787573,2619.5,2618.4,3.0530024]
[1647010019840,0.95431,2619.4,2618.9,1.12451276]
[1647010020040,0.05519485,2619.3,2618.9,2.07875276]
[1647010020240,0.05519485,2619.3,2618.9,1.5268519]
[1647010020543,0.05519485,2619.3,2618.0,2.2906232]
[1647010020544,0.05741564,2619.2,2618.0,2.2906232]
[1647010021297,0.8956294,2618.4,2618.0,2.2906232]
[1647010021497,0.05503516,2618.3,2618.0,2.2906232]
[1647010021894,0.00503516,2618.3,2618.0,2.2906232]
[1647010022297,0.00503516,2618.3,2618.0,3.0543682]
[1647010022298,1.91443516,2618.3,2618.0,3.0543682]
[1647010022493,1.91443516,2618.3,2618.0,0.763745]
[1647010022494,1.9094,2618.3,2618.0,0.763745]
[1647010022694,0.030559,2618.2,2617.9,0.00430538]
[1647010022995,0.030559,2618.2,2617.9,0.00430511]
[1647010023394,0.030559,2618.2,2617.9,0.76812271]
[1647010023593,0.04953019,2618.1,2617.9,0.76812271]
[1647010023795,0.04953019,2618.1,2617.9,0.7638176]
[1647010023998,0.04953019,2618.1,2617.9,0.00415975]
[1647010024195,0.95488,2618.0,2617.9,0.00415975]
[1647010024598,3.95488,2618.0,2617.9,0.00415975]
[1647010024844,3.95488,2618.0,2617.1,0.3817]
[1647010024845,7.0041,2617.9,2617.1,0.3817]
[1647010025037,7.0041,2617.9,2616.5,1.12286621]
[1647010025038,1.00280988,2617.1,2616.5,1.12286621]
[1647010025240,0.9552,2617.8,2616.5,1.12286621]
[1647010025241,0.95524,2617.7,2616.5,1.12286621]
[1647010025438,2.86568,2617.8,2616.7,1.5281871]
[1647010025439,0.3,2617.2,2616.7,1.5281871]
[1647010025838,2.91048,2617.8,2616.7,1.5281871]
[1647010025839,1.91048,2617.8,2616.7,1.5281871]
[1647010026039,2.91048,2617.8,2616.7,1.5281871]
[1647010026241,0.95512,2617.1,2616.9,1.02231072]
[1647010026638,4.3815408,2617.9,2616.9,1.02231072]
[1647010026838,4.3815408,2617.9,2617.0,1.5278285]
[1647010027239,5.24375934,2617.9,2617.3,1.07891032]
[1647010027446,1.90976,2617.7,2617.4,0.7639256]
[1647010028043,3.81992,2618.4,2617.4,0.7639256]
[1647010028044,0.95486,2617.8,2617.4,0.7639256]
[1647010028693,0.95486,2617.8,2617.3,1.53037958]
[1647010028896,0.95486,2617.8,2616.8,0.08870318]
[1647010029096,0.95486,2617.8,2617.5,0.00416822]
[1647010029097,0.95479,2617.7,2617.5,0.00416822]
[1647010029294,0.95479,2617.7,2616.5,2.99548861]
[1647010029494,0.95479,2617.7,2616.5,1.99548861]
[1647010029799,0.95479,2617.7,2617.2,0.00416421]
[1647010030600,0.95479,2617.7,2617.4,1.14605326]
[1647010031500,0.95479,2617.7,2617.4,1.90994646]
[1647010032643,0.95479,2617.7,2617.4,0.00235459]
[1647010033738,0.85867097,2617.6,2617.4,0.00398082]
[1647010033941,0.82579549,2617.6,2617.4,0.00398082]
[1647010034138,0.95479,2617.7,2617.4,0.00398082]
[1647010034338,0.95479,2617.7,2617.5,0.00414893]
[1647010035147,0.95479,2617.7,2617.5,1.05668186]
[1647010035745,0.95479,2617.7,2617.5,0.00414893]
[1647010037585,1.87239527,2617.7,2617.5,0.00414893]
[1647010037789,1.87239527,2617.7,2617.4,0.00422621]
[1647010037790,0.04191226,2617.6,2617.4,0.00422621]
[1647010038185,0.04191226,2617.6,2616.2,0.65493037]
[1647010038186,0.01267862,2617.3,2616.3,0.0285008]
[1647010038389,1.017299,2617.3,2616.4,0.9552]
[1647010038587,0.82936545,2616.6,2616.1,0.08503874]
[1647010038795,0.82936545,2616.6,2616.0,2.2924573]
[1647010039190,0.88251119,2616.6,2616.0,2.2924573]
[1647010039839,0.05401882,2616.5,2615.7,1.18795774]
[1647010040041,0.05401882,2616.5,2615.8,0.9554]
[1647010040348,0.05401882,2616.5,2616.1,1.05561334]
[1647010040840,0.95544,2616.3,2616.1,1.05561334]
[1647010041241,0.95544,2616.3,2616.2,0.7642703]
[1647010041439,0.95544,2616.3,2616.1,1.5285405]
[1647010042340,0.95544,2616.3,2616.1,1.53284311]
[1647010043496,0.95544,2616.3,2616.1,0.00395658]
[1647010044487,0.95544,2616.3,2615.6,0.94422867]
[1647010044686,0.95559,2616.0,2615.6,0.94422867]
[1647010044890,0.95559,2616.0,2615.7,1.5288052]
[1647010045695,0.04778071,2615.9,2615.1,0.03089173]
[1647010045892,0.04778071,2615.9,2615.2,1.529064]
[1647010045893,1.79699195,2615.6,2615.2,1.529064]
[1647010046691,1.79699195,2615.6,2615.0,0.07891382]
[1647010046891,1.79699195,2615.6,2614.9,1.264695]
[1647010046892,1.84334621,2615.6,2614.9,1.264695]
[1647010047090,1.84334621,2615.6,2614.6,2.55865955]
[1647010047335,1.00208426,2615.6,2614.8,1.06980788]
[1647010048137,0.95573,2615.6,2615.0,0.7646641]
[1647010048339,0.95573,2615.6,2615.1,0.07071194]
[1647010048739,0.95573,2615.6,2615.0,0.7646641]
[1647010049336,0.95573,2615.6,2615.2,1.07234278]
[1647010049737,0.95573,2615.6,2615.3,3.57526114]
[1647010049939,0.95573,2615.6,2615.4,0.08614588]
[1647010050541,0.95573,2615.6,2615.5,11.64]
[1647010050744,3.82197,2616.5,2615.6,0.09048089]
[1647010051004,0.382,2616.8,2615.9,0.07134862]
[1647010051188,0.382,2616.8,2616.1,0.08875298]
[1647010051391,0.382,2616.8,2616.3,11.71130758]
[1647010051587,0.382,2616.8,2616.5,0.07914185]
[1647010051789,0.01267862,2617.3,2617.1,0.89685046]
[1647010051991,1.2011,2617.8,2617.2,0.0748167]
[1647010052189,1.2011,2617.8,2616.8,0.07309875]
[1647010052589,3.82034,2617.6,2616.8,0.07309875]
[1647010053191,3.82034,2617.6,2617.3,0.7639143]
[1647010053391,3.77034,2617.6,2617.4,1.00098582]
[1647010053594,3.77034,2617.6,2617.3,0.7639143]
[1647010054392,3.77034,2617.6,2617.2,1.5278286]
[1647010055047,1.1479849,2617.5,2617.2,1.5278286]
[1647010055248,0.95499,2617.4,2617.2,1.5278286]
[1647010055648,0.95499,2617.4,2617.3,0.00428285]
[1647010056253,0.95499,2617.4,2617.0,1.5279645]
[1647010057450,0.95499,2617.4,2617.0,1.8279645]
[1647010057649,1.10568929,2617.3,2617.0,1.8279645]
[1647010057851,2.06073929,2617.3,2617.0,1.8279645]
[1647010058052,0.95505,2617.3,2617.1,0.95495]
[1647010058794,0.95505,2617.3,2616.8,0.90698425]
[1647010058990,0.95505,2617.3,2616.8,1.0]
[1647010059191,0.95505,2617.3,2616.7,0.07656479]
[1647010059390,0.95505,2617.3,2616.7,1.03165479]
[1647010059595,0.95505,2617.3,2616.8,0.09001836]
[1647010059798,0.95505,2617.3,2616.9,0.7640749]
[1647010060297,0.95505,2617.3,2617.0,0.3]
[1647010061303,0.95505,2617.3,2616.9,0.30428321]
[1647010061499,0.95505,2617.3,2616.9,0.06878149]
[1647010061698,0.95505,2617.3,2617.0,0.0042831]
[1647010062336,0.95505,2617.3,2617.1,0.95493]
[1647010062533,0.95505,2617.3,2617.1,1.9099]
[1647010062734,0.95505,2617.3,2617.1,2.2099]
[1647010063333,0.95499,2617.4,2617.1,2.2099]
[1647010063334,0.95499,2617.4,2617.2,11.71060329]
[1647010063539,0.95499,2617.4,2617.2,15.92022]
[1647010063839,0.95499,2617.4,2617.3,0.3]
[1647010064037,0.95499,2617.4,2617.3,12.401]
[1647010064235,2.86542563,2617.9,2617.3,13.401]
[1647010064435,2.86542563,2617.9,2617.4,13.3581062]
[1647010064636,2.86542563,2617.9,2617.6,11.64]
[1647010064839,2.86542563,2617.9,2617.7,1.34200946]
[1647010065041,2.86409,2617.9,2617.7,0.461]
[1647010065240,2.86409,2617.9,2617.6,0.3]
[1647010065444,2.8678266,2617.9,2617.6,0.3]
[1647010065641,2.8678266,2617.9,2617.7,0.95451]
[1647010066194,2.86409,2617.9,2617.7,0.95451]
[1647010066594,2.86813079,2617.9,2617.7,0.95451]
[1647010066794,2.86813079,2617.9,2617.6,1.0636021]
[1647010067092,2.86813079,2617.9,2617.6,2.0183421]
[1647010067294,2.86813079,2617.9,2617.6,1.0636021]
[1647010067495,2.86409,2617.9,2617.6,1.0636021]
[1647010067795,2.86813077,2617.9,2617.6,1.0636021]
[1647010068794,2.86409,2617.9,2617.6,1.0636021]
[1647010069000,2.86829096,2617.9,2617.6,2.0183721]
[1647010070045,2.92587414,2617.9,2617.6,0.3]
[1647010070245,2.92167318,2617.9,2617.2,0.00406738]
[1647010071044,0.95494,2617.4,2617.1,10.95497]
[1647010071244,0.95494,2617.4,2617.2,0.7639704]
[1647010071445,0.95494,2617.4,2617.2,0.76803766]
[1647010072245,0.95494,2617.4,2617.2,0.7639704]
[1647010072446,0.95494,2617.4,2617.2,0.76812304]
[1647010072447,1.25494,2617.4,2617.2,0.76812304]
[1647010072647,1.25494,2617.4,2617.2,3.63263304]
[1647010072848,1.25494,2617.4,2617.3,0.3]
[1647010073498,1.25494,2617.4,2617.3,0.31]
[1647010073693,1.25494,2617.4,2617.3,12.411]
[1647010073694,0.3,2617.4,2617.3,12.411]
[1647010074090,0.00415368,2617.9,2617.3,13.411]
[1647010074296,0.95461,2617.6,2617.3,13.401]
[1647010074492,0.90461,2617.6,2617.3,13.411]
[1647010074692,1.90923,2617.7,2617.5,12.58021538]
[1647010074896,1.90923,2617.7,2617.6,0.461]
[1647010075296,2.20923,2617.7,2617.6,0.461]
[1647010076098,2.20923,2617.7,2617.5,12.94]
[1647010076498,2.20923,2617.7,2617.5,0.3]
[1647010079948,2.15925698,2617.7,2617.5,0.3]
[1647010080997,2.15925698,2617.7,2617.5,0.761]
[1647010082390,2.15925698,2617.7,2617.4,1.4458336]
[1647010083192,0.05406285,2617.6,2617.1,11.1459402]
[1647010083392,0.95503,2617.4,2617.2,0.00395587]
[1647010083700,1.25503,2617.4,2617.2,0.00395587]
[1647010083891,0.0448766,2617.3,2617.2,0.00395587]
[1647010084291,0.0448766,2617.3,2617.1,10.0]
[1647010084494,5.0,2617.2,2616.7,1.91001]
[1647010084796,5.0,2617.2,2616.2,0.9553]
[1647010084797,1.00444546,2617.0,2616.2,0.9553]
[1647010084993,0.04269416,2616.9,2615.9,2.46243116]
[1647010085212,0.04269416,2616.9,2615.9,0.07423116]
[1647010085395,0.04269416,2616.9,2615.5,0.461]
[1647010085597,0.04269416,2616.9,2615.4,0.461]
[1647010085997,0.044857,2616.5,2616.3,0.00395957]
[1647010086195,0.044857,2616.5,2615.4,2.5632276]
[1647010086397,0.044857,2616.5,2615.7,1.06642926]
[1647010086797,0.044857,2616.5,2615.7,1.36642926]
[1647010086993,0.04950434,2616.1,2615.7,1.93973396]
[1647010087397,1.25551,2616.2,2615.7,2.89522396]
[1647010087594,1.25551,2616.2,2615.7,3.42726882]
[1647010087796,1.25551,2616.2,2615.7,4.42726882]
[1647010087995,0.95548,2616.1,2615.8,0.95535]
[1647010088194,0.95548,2616.1,2615.8,1.72001273]
[1647010089196,0.95548,2616.1,2615.8,2.29319443]
[1647010089397,0.95548,2616.1,2615.9,0.95533]
[1647010089598,0.95548,2616.1,2616.0,0.461]
[1647010089796,0.95548,2616.1,2616.0,0.761]
[1647010090399,0.95548,2616.1,2616.0,4.261]
[1647010090604,0.95518,2616.3,2616.0,5.21614]
[1647010090900,1.25518,2616.3,2616.1,3.52344839]
[1647010091098,1.25518,2616.3,2616.2,0.761]
[1647010095148,1.25518,2616.3,2616.2,12.401]
[1647010095342,1.25518,2616.3,2616.2,1.761]
[1647010095343,0.95518,2616.3,2616.2,1.761]
[1647010095542,1.91031,2616.6,2616.2,5.261]
[1647010095745,0.38605304,2617.4,2616.4,0.95509]
[1647010096008,0.38605304,2617.4,2616.6,0.08661211]
[1647010096009,0.00395304,2617.4,2616.6,0.08661211]
[1647010096193,1.91005,2617.2,2616.7,0.461]
[1647010096595,1.91005,2617.2,2616.8,0.95503]
[1647010096794,1.91005,2617.2,2616.8,1.5280591]
[1647010097194,1.91005,2617.2,2616.9,0.3]
[1647010098198,1.91005,2617.2,2617.1,1.07497467]
[1647010098403,1.91005,2617.2,2617.1,5.03597467]
[1647010098599,0.95501,2617.3,2617.2,11.64]
[1647010098800,0.95501,2617.3,2617.2,4.04927488]
[1647010098999,0.95501,2617.3,2617.2,1.84927488]
[1647010099299,3.82016,2618.0,2617.2,0.761]
[1647010099300,1.91336748,2617.4,2617.2,0.761]
[1647010099502,1.91336748,2617.4,2617.2,0.3]
[1647010099742,1.91336748,2617.4,2617.0,3.7827627]
[1647010099946,1.91336748,2617.4,2617.0,2.7827627]
[1647010100145,1.91336748,2617.4,2617.0,3.7827627]
[1647010100146,2.21336748,2617.4,2617.0,3.7827627]
[1647010100349,2.21336748,2617.4,2617.2,0.95492]
[1647010100548,2.20971,2617.4,2617.2,0.95492]
[1647010100746,2.20971,2617.4,2617.2,1.25492]
[1647010100946,2.20971,2617.4,2617.2,12.97248674]
[1647010101146,2.20971,2617.4,2617.2,13.43348674]
[1647010101352,2.20971,2617.4,2617.2,14.43348674]
[1647010101749,2.20971,2617.4,2617.3,15.14]
[1647010101750,1.90971,2617.4,2617.3,15.14]
[1647010101951,0.95485,2617.6,2617.3,15.601]
[1647010102149,0.4170149,2617.6,2617.3,13.101]
[1647010102350,0.95454,2617.7,2617.5,11.64]
[1647010102548,1.90922,2617.8,2617.3,3.3802]
[1647010102549,1.90922,2617.8,2617.6,12.101]
[1647010102751,1.90922,2617.8,2617.7,12.101]
[1647010102953,1.90922,2617.8,2617.7,0.461]
[1647010103149,1.90922,2617.8,2617.7,1.461]
[1647010103350,1.90922,2617.8,2617.7,0.461]
[1647010103787,1.85922,2617.8,2617.7,0.461]
[1647010104495,1.85922,2617.8,2617.4,0.95486]
[1647010104496,0.0445079,2617.7,2617.4,0.95486]
[1647010104691,0.0445079,2617.7,2617.3,1.0]
[1647010104892,1.9543479,2617.7,2617.2,1.90968]
[1647010105290,2.2543479,2617.7,2617.2,1.90968]
[1647010105690,2.2543479,2617.7,2617.2,2.20968]
[1647010105890,2.2543479,2617.7,2617.3,0.95483]
[1647010106292,0.00394518,2617.6,2617.3,0.95483]
[1647010106592,0.95879518,2617.6,2617.3,0.95483]
[1647010106792,1.25879518,2617.6,2617.3,0.95483]
[1647010107007,1.25879518,2617.6,2617.2,1.90968]
[1647010107008,0.05368763,2617.5,2617.2,1.90968]
[1647010107239,0.05368763,2617.5,2616.9,2.40991]
[1647010107240,1.91007,2617.4,2616.9,2.40991]
[1647010107440,0.05192849,2617.3,2616.9,0.5]
[1647010107640,1.00711849,2617.3,2616.9,0.5]
[1647010107840,1.00711849,2617.3,2616.6,1.0]
[1647010107841,0.88603652,2617.2,2616.6,1.0]
[1647010108047,0.04257278,2617.1,2616.2,0.00365676]
[1647010109041,0.95529,2617.0,2616.2,0.00365676]
[1647010109441,0.95529,2617.0,2616.2,0.00734189]
[1647010109442,1.00755102,2616.9,2616.2,0.00734189]
[1647010109643,0.05342306,2616.7,2616.2,0.95901513]
[1647010109846,0.35297805,2616.9,2616.2,1.25901513]
[1647010110046,0.35297805,2616.9,2616.2,1.25533]
[1647010110247,0.05297805,2616.9,2616.2,0.30368508]
[1647010110651,0.05297805,2616.9,2616.2,0.00368508]
[1647010110848,0.9553,2616.7,2616.2,0.00368508]
[1647010111089,3.87418805,2616.9,2616.1,0.95536]
[1647010111090,0.04743898,2616.5,2616.1,0.95536]
[1647010111294,2.86588,2616.9,2616.0,0.3]
[1647010111295,0.04708444,2616.7,2616.0,0.3]
[1647010111492,0.04708444,2616.7,2615.8,2.2108]
[1647010111689,0.04708444,2616.7,2616.2,0.00370384]
[1647010111990,0.34976114,2616.7,2616.2,0.00370384]
[1647010112191,0.05094418,2616.6,2616.2,0.00370384]
[1647010112392,0.95539,2616.5,2616.2,0.00370384]
[1647010112592,1.25539,2616.5,2616.2,0.00740763]
[1647010112793,1.25539,2616.5,2616.2,0.00370379]
[1647010113593,1.25539,2616.5,2616.0,0.37775294]
[1647010113792,1.25539,2616.5,2616.0,11.71775294]
[1647010114193,1.25539,2616.5,2616.2,0.81454809]
[1647010114393,1.25539,2616.5,2616.3,0.9553]
[1647010116042,0.95539,2616.5,2616.3,0.9553]
[1647010117244,0.95539,2616.5,2616.2,0.30370845]
[1647010117447,0.95539,2616.5,2616.2,0.3]
[1647010117648,0.05053408,2616.4,2615.7,2.91083]
[1647010117846,1.25539,2616.5,2615.7,2.91083]
[1647010117847,0.05060752,2616.2,2615.7,1.91083]
[1647010118048,1.96165752,2616.2,2615.7,2.91083]
[1647010118246,2.26165752,2616.2,2615.7,1.91083]
[1647010118505,2.26165752,2616.2,2615.7,2.91083]
[1647010118506,0.04234177,2616.1,2615.7,2.91083]
[1647010118888,0.04234177,2616.1,2615.7,2.21083]
[1647010119088,0.04234177,2616.1,2615.7,3.21083]
[1647010119287,0.04234177,2616.1,2615.7,2.21083]
[1647010119488,0.95553,2616.1,2615.8,0.95541]
[1647010119893,0.95553,2616.1,2615.8,1.25541]
[1647010120092,0.95553,2616.1,2615.8,0.3]
[1647010120292,0.95553,2616.1,2615.7,3.21083]
[1647010120497,0.95553,2616.1,2615.7,2.21083]
[1647010120695,0.95553,2616.1,2615.7,5.71083]
[1647010120895,0.95553,2616.1,2615.9,0.95538]
[1647010121295,0.95553,2616.1,2615.9,1.25538]
[1647010122351,0.95553,2616.1,2615.9,1.25966141]
[1647010122553,0.95553,2616.1,2615.9,2.10082227]
[1647010122753,0.95553,2616.1,2615.9,5.60082227]
[1647010122952,0.95553,2616.1,2615.9,3.10082227]
[1647010123152,0.95553,2616.1,2615.9,3.09654086]
[1647010123552,0.95553,2616.1,2615.9,3.10082227]
[1647010124154,0.95553,2616.1,2615.9,2.10082227]
[1647010124355,1.91105,2616.2,2615.9,2.10082227]
[1647010124658,0.06584065,2617.1,2616.2,12.59512]
[1647010124860,0.02139695,2617.1,2616.3,12.101]
[1647010125059,0.02139695,2617.1,2616.4,0.08218456]
[1647010125260,0.95505,2616.7,2616.5,0.461]
[1647010125559,0.95505,2616.7,2616.6,1.070672]
[1647010125758,0.95505,2616.7,2616.6,1.531672]
[1647010126797,0.95505,2616.7,2616.6,5.031672]
[1647010126998,1.90993,2616.9,2616.7,0.07147]
[1647010127198,1.93115695,2617.1,2616.7,13.5392561]
[1647010127400,0.69051659,2617.1,2616.9,0.08914219]
[1647010127611,9.695e-05,2617.1,2617.0,12.101]
[1647010127803,9.695e-05,2617.1,2617.0,18.65874037]
[1647010128009,9.695e-05,2617.1,2617.0,20.98814037]
[1647010128204,1.2087,2618.1,2617.2,11.64]
[1647010128404,1.2087,2618.1,2617.3,11.67651584]
[1647010128602,1.2087,2618.1,2617.5,11.14]
[1647010128803,1.90903,2618.2,2617.6,11.601]
[1647010128804,2.20903,2618.2,2617.6,11.601]
[1647010129205,2.20903,2618.2,2617.6,12.601]
[1647010129404,2.20903,2618.2,2617.7,0.572726]
[1647010129605,1.90911,2618.1,2617.8,0.95456]
[1647010129850,2.20911,2618.1,2617.8,0.95456]
[1647010130349,2.20911,2618.1,2617.7,2.20911]
[1647010130547,1.00000584,2618.0,2617.7,2.20911]
[1647010130746,1.31885651,2618.0,2617.7,2.20911]
[1647010131556,1.31885651,2618.0,2617.7,0.3]
[1647010131557,0.0478685,2617.8,2617.7,0.3]
[1647010131747,0.0478685,2617.8,2617.5,1.25486]
[1647010131948,1.0027485,2617.8,2617.5,1.25486]
[1647010132149,0.05436058,2617.6,2617.5,1.25486]
[1647010132447,0.87477182,2617.6,2617.5,0.95486]
[1647010132650,0.04991726,2617.5,2617.4,1.90959]
[1647010133049,0.04991726,2617.5,2617.1,1.90985]
[1647010133250,0.95488,2617.4,2617.1,1.90985]
[1647010133503,0.04841008,2617.3,2617.1,1.90985]
[1647010133893,0.04841008,2617.3,2617.2,0.86176865]
[1647010134097,1.25488,2617.4,2617.2,0.86176865]
[1647010134897,0.95487,2617.3,2617.2,6.35049185]
[1647010135099,0.95487,2617.3,2617.2,2.85049185]
[1647010135298,0.95487,2617.3,2617.2,7.35049185]
[1647010135498,0.95487,2617.3,2617.2,6.35049185]
[1647010135698,0.95487,2617.3,2617.2,6.77763865]
[1647010136099,0.95487,2617.3,2617.2,3.27763865]
[1647010136298,0.95487,2617.3,2617.2,2.27763865]
[1647010136499,0.95487,2617.3,2617.2,6.77763865]
[1647010136801,0.95487,2617.3,2617.2,18.41763865]
[1647010137238,0.95487,2617.3,2617.2,19.41763865]
[1647010137838,0.95487,2617.3,2617.2,19.42763865]
[1647010141999,0.95487,2617.3,2617.2,7.78763865]
[1647010142197,0.95487,2617.3,2617.2,3.28763865]
[1647010142595,0.95487,2617.3,2617.2,5.78763865]
[1647010142795,0.95487,2617.3,2617.2,18.42763865]
[1647010143198,0.95487,2617.3,2617.2,14.92763865]
[1647010143497,0.3888541,2617.4,2617.2,14.92763865]
[1647010143696,0.3888541,2617.4,2617.3,15.14]
[1647010143996,0.3888541,2617.4,2617.3,15.611]
[1647010144196,0.3888541,2617.4,2617.3,16.911]
[1647010144499,0.38457,2617.4,2617.3,16.911]
[1647010144739,0.38457,2617.4,2617.3,17.911]
[1647010145546,2.86379,2618.2,2617.3,17.911]
[1647010145746,2.86379,2618.2,2617.7,11.64]
[1647010145946,0.3823,2618.5,2617.9,11.64]
[1647010146145,1.9086,2618.4,2618.1,11.64]
[1647010146344,1.9086,2618.4,2618.2,0.461]
[1647010146849,1.9086,2618.4,2618.2,0.761]
[1647010147057,1.91288303,2618.4,2618.2,1.7153]
[1647010147848,1.29941608,2618.5,2618.2,1.7153]
[1647010148052,2.86348,2618.8,2618.3,8.53921326]
[1647010148248,2.86348,2618.8,2618.3,21.09455]
[1647010148249,0.00401141,2618.4,2618.3,21.09455]
[1647010148510,0.00401141,2618.4,2618.3,21.55555]
[1647010148698,0.00401141,2618.4,2618.3,22.55555]
[1647010149097,0.0054308,2619.3,2618.3,19.6282062]
[1647010149297,0.0054308,2619.3,2618.8,0.3]
[1647010149499,1.90843,2619.1,2618.9,0.461]
[1647010149702,1.90843,2619.1,2618.9,0.761]
[1647010150303,1.90843,2619.1,2618.9,1.71526]
[1647010150506,0.04243684,2619.0,2618.8,1.90852]
[1647010150708,0.04243684,2619.0,2618.3,0.461]
[1647010150908,0.04243684,2619.0,2618.8,0.3]
[1647010151107,0.04243684,2619.0,2618.3,0.461]
[1647010151309,0.04243684,2619.0,2618.2,1.90905]
[1647010151511,0.95474,2618.5,2617.3,1.01271656]
[1647010151710,0.87487167,2618.3,2617.3,2.58559766]
[1647010151906,0.04425893,2618.2,2617.5,0.95476]
[1647010152344,0.04425893,2618.2,2617.6,1.90953]
[1647010152546,0.95484,2618.1,2617.6,2.20953]
[1647010152742,1.25484,2618.1,2617.6,2.20953]
[1647010152941,0.95484,2618.1,2617.6,2.7823361]
[1647010153144,1.25484,2618.1,2617.7,0.95465]
[1647010153343,1.25484,2618.1,2617.8,0.96360183]
[1647010153344,0.95484,2618.1,2617.8,0.96360183]
[1647010153546,0.95484,2618.1,2617.8,6.83358183]